Workbook

Sheet Documentation (hidden)
A1: K303 - Project 5 | C1: Problem 2
A2: Spring 2020
A4: Username: | C4: RASHAR | E4: Class Number: | G4: 7123
A5: Prepared by: | C5: Raunav Sharma | E5: Lab Instructor's Name: | G5: Taryn Malher
A6: Today is: | C6: =TODAY() -> 2020-06-19

Sheet Historical returns (hidden)
B1: Annual Returns on Investments in | F1: Average annual returns
A2: Year | B2: S&P 500 | C2: T. Bills | D2: T. Bonds | F2: S&P 500 | G2: T. Bills | H2: T. Bonds
A3: 1928 | B3: 0.4381115515 | C3: 0.0308 | D3: 0.00835470859 | F3: =AVERAGE(B3:B90)+1 -> 1.114119998 | G3: =AVERAGE(C3:C90)+1 -> 1.034938807 | H3: 1.052312982
A4: 1929 | B4: -0.08297946612 | C4: 0.0316 | D4: 0.04203804156
A5: 1930 | B5: -0.2512363636 | C5: 0.0455 | D5: 0.04540931435
A6: 1931 | B6: -0.4383754889 | C6: 0.0231 | D6: -0.02558855962
A7: 1932 | B7: -0.08642364532 | C7: 0.0107 | D7: 0.0879030699
A8: 1933 | B8: 0.4998222543 | C8: 0.0096 | D8: 0.01855272089
A9: 1934 | B9: -0.01188565697 | C9: 0.003225 | D9: 0.07963442618
A10: 1935 | B10: 0.4674042105 | C10: 0.00175 | D10: 0.0447204773
A11: 1936 | B11: 0.3194341028 | C11: 0.0017 | D11: 0.05017875405
A12: 1937 | B12: -0.3533672875 | C12: 0.003025 | D12: 0.0137914606
A13: 1938 | B13: 0.2928265403 | C13: 0.000775 | D13: 0.04213248532
A14: 1939 | B14: -0.01097564688 | C14: 0.000375 | D14: 0.04412261394
A15: 1940 | B15: -0.1067287319 | C15: 0.00025 | D15: 0.05402481596
A16: 1941 | B16: -0.1277145558 | C16: 0.000825 | D16: -0.02022197585
A17: 1942 | B17: 0.1917376295 | C17: 0.003375 | D17: 0.02294868237
A18: 1943 | B18: 0.2506131013 | C18: 0.0038 | D18: 0.0249
A19: 1944 | B19: 0.1903067695 | C19: 0.0038 | D19: 0.02577611158
A20: 1945 | B20: 0.3582108434 | C20: 0.0038 | D20: 0.03804417342
A21: 1946 | B21: -0.08429147465 | C21: 0.0038 | D21: 0.03128374538
A22: 1947 | B22: 0.052 | C22: 0.005675 | D22: 0.009196968063
A23: 1948 | B23: 0.05704575163 | C23: 0.010225 | D23: 0.01951036941
A24: 1949 | B24: 0.1830322368 | C24: 0.011025 | D24: 0.04663485183
A25: 1950 | B25: 0.3080553901 | C25: 0.011725 | D25: 0.004295957417
A26: 1951 | B26: 0.2367846304 | C26: 0.014775 | D26: -0.002953139221
A27: 1952 | B27: 0.1815098864 | C27: 0.016725 | D27: 0.02267996192
A28: 1953 | B28: -0.01208204742 | C28: 0.018925 | D28: 0.04143840259
A29: 1954 | B29: 0.5256332124 | C29: 0.009625 | D29: 0.03289803456
A30: 1955 | B30: 0.3259733185 | C30: 0.0166 | D30: -0.01336439129
A31: 1956 | B31: 0.07439511873 | C31: 0.02555 | D31: -0.02255773817
A32: 1957 | B32: -0.1045736019 | C32: 0.0323 | D32: 0.06797012847
A33: 1958 | B33: 0.4371995499 | C33: 0.017775 | D33: -0.02099018176
A34: 1959 | B34: 0.1205645716 | C34: 0.03255 | D34: -0.02646631259
A35: 1960 | B35: 0.003365353147 | C35: 0.03045 | D35: 0.1163950369
A36: 1961 | B36: 0.2663771296 | C36: 0.022675 | D36: 0.02060920808
A37: 1962 | B37: -0.08811460517 | C37: 0.027775 | D37: 0.05693544054
A38: 1963 | B38: 0.226119271 | C38: 0.0311 | D38: 0.01684162074
A39: 1964 | B39: 0.1641545588 | C39: 0.03505 | D39: 0.03728064891
A40: 1965 | B40: 0.1239924248 | C40: 0.039025 | D40: 0.007188550936
A41: 1966 | B41: -0.09970954236 | C41: 0.0484 | D41: 0.02907940932
A42: 1967 | B42: 0.2380296651 | C42: 0.043325 | D42: -0.01580620993
A43: 1968 | B43: 0.1081486265 | C43: 0.0526 | D43: 0.03274619695
A44: 1969 | B44: -0.08241371076 | C44: 0.065625 | D44: -0.05014049321
A45: 1970 | B45: 0.03561144905 | C45: 0.06685 | D45: 0.1675473718
A46: 1971 | B46: 0.142211503 | C46: 0.0454 | D46: 0.0978689662
A47: 1972 | B47: 0.1875536292 | C47: 0.039525 | D47: 0.0281844905
A48: 1973 | B48: -0.1430804744 | C48: 0.06725 | D48: 0.03658664602
A49: 1974 | B49: -0.2590178575 | C49: 0.077775 | D49: 0.01988608693
A50: 1975 | B50: 0.3699513711 | C50: 0.0599 | D50: 0.03605253603
A51: 1976 | B51: 0.23830999 | C51: 0.0497 | D51: 0.1598456074
A52: 1977 | B52: -0.06979704076 | C52: 0.051275 | D52: 0.01289960607
A53: 1978 | B53: 0.06509283912 | C53: 0.069325 | D53: -0.007775806908
A54: 1979 | B54: 0.1851949017 | C54: 0.099375 | D54: 0.006707203125
A55: 1980 | B55: 0.3173524551 | C55: 0.1122 | D55: -0.02989744252
A56: 1981 | B56: -0.04702390247 | C56: 0.143 | D56: 0.08199215336
A57: 1982 | B57: 0.2041905508 | C57: 0.1101 | D57: 0.3281454949
A58: 1983 | B58: 0.2233715586 | C58: 0.084475 | D58: 0.03200209445
A59: 1984 | B59: 0.06146142 | C59: 0.096125 | D59: 0.1373336434
A60: 1985 | B60: 0.3123514949 | C60: 0.074875 | D60: 0.2571248821
A61: 1986 | B61: 0.1849457876 | C61: 0.06035 | D61: 0.2428421514
A62: 1987 | B62: 0.05812721642 | C62: 0.057225 | D62: -0.04960508938
A63: 1988 | B63: 0.1653719281 | C63: 0.0645 | D63: 0.08223595843
A64: 1989 | B64: 0.3147518364 | C64: 0.0811 | D64: 0.1769364716
A65: 1990 | B65: -0.03064451613 | C65: 0.0755 | D65: 0.06235375334
A66: 1991 | B66: 0.3023484313 | C66: 0.0561 | D66: 0.1500451002
A67: 1992 | B67: 0.07493727972 | C67: 0.03405 | D67: 0.09361637316
A68: 1993 | B68: 0.09967051479 | C68: 0.029825 | D68: 0.1421095759
A69: 1994 | B69: 0.01325920677 | C69: 0.03985 | D69: -0.08036655551
A70: 1995 | B70: 0.371951989 | C70: 0.05515 | D70: 0.2348078011
A71: 1996 | B71: 0.2268096602 | C71: 0.050225 | D71: 0.01428607793
A72: 1997 | B72: 0.331036531 | C72: 0.050525 | D72: 0.09939130273
A73: 1998 | B73: 0.2833795328 | C73: 0.047275 | D73: 0.1492143192
A74: 1999 | B74: 0.2088535099 | C74: 0.0451 | D74: -0.08254214796
A75: 2000 | B75: -0.09031818955 | C75: 0.057625 | D75: 0.1665526713
A76: 2001 | B76: -0.1184975914 | C76: 0.036725 | D76: 0.05572181189
A77: 2002 | B77: -0.2196604796 | C77: 0.016575 | D77: 0.1511640038
A78: 2003 | B78: 0.2835580005 | C78: 0.0103 | D78: 0.003753185882
A79: 2004 | B79: 0.1074277594 | C79: 0.012275 | D79: 0.04490683702
A80: 2005 | B80: 0.04834477523 | C80: 0.0301 | D80: 0.0286753296
A81: 2006 | B81: 0.1561255798 | C81: 0.046775 | D81: 0.01961001242
A82: 2007 | B82: 0.05484735246 | C82: 0.046425 | D82: 0.1020992193
A83: 2008 | B83: -0.3655234411 | C83: 0.01585 | D83: 0.2010127993
A84: 2009 | B84: 0.2593523388 | C84: 0.00135 | D84: -0.1111669531
A85: 2010 | B85: 0.1482109228 | C85: 0.0013 | D85: 0.0846293388
A86: 2011 | B86: 0.02098374734 | C86: 0.0003 | D86: 0.16035335
A87: 2012 | B87: 0.1589058524 | C87: 0.0005 | D87: 0.02971571978
A88: 2013 | B88: 0.3214508586 | C88: 0.00066 | D88: -0.09104568794
A89: 2014 | B89: 0.1352442165 | C89: 0.00053 | D89: 0.1074618045
A90: 2015 | B90: 0.01359949488 | C90: 0.0021 | D90: 0.01284299671

Sheet Model and simulation (hidden)
C5: Initial balance | D5: ='Combo box back end'!C44 -> 1000
C7: Annual deposit | D7: ='Combo box back end'!D44 -> 1200
C9: Allocation strategy | D9: S&P 500 | E9: T. Bills | F9: T. Bonds
C10: 1 | D10: 0 | E10: 0.2 | F10: 0.8
C11: 2 | D11: 0 | E11: 0 | F11: 1
C12: 3 | D12: 0.1 | E12: 0.7 | F12: 0.2
C13: 4 | D13: 0.3 | E13: 0.45 | F13: 0.25
C14: 5 | D14: 0.4 | E14: 0.15 | F14: 0.45 | I14: Simulation
C15: 6 | D15: 0.6 | E15: 0.1 | F15: 0.3 | H15: Data table corner cell → | I15: =G39 -> 40368.36408 | J15: 1 | K15: 2 | L15: 3 | M15: 4 | N15: 5 | O15: 6 | P15: 7 | Q15: 8 | R15: 9
C16: 7 | D16: 0.65 | E16: 0.3 | F16: 0.05 | I16: 1 | J16: 17679.32162 | K16: 8223.126601 | L16: 16451.33393 | M16: 22961.93135 | N16: 21617.94517 | O16: 79848.9445 | P16: 27820.72194 | Q16: 48756.32364 | R16: 20236.76765
C17: 8 | D17: 0.75 | E17: 0 | F17: 0.25 | I17: 2 | J17: 11936.26246 | K17: 30552.49993 | L17: 25007.55217 | M17: 31460.74585 | N17: 17811.11401 | O17: 10676.61822 | P17: 16650.22907 | Q17: 29432.47315 | R17: 6681.188718
C18: 9 | D18: 1 | E18: 0 | F18: 0 | I18: 3 | J18: 11116.1916 | K18: 34058.67132 | L18: 13037.11556 | M18: 19890.00998 | N18: 22868.56928 | O18: 10369.40267 | P18: 8069.538558 | Q18: 16803.87563 | R18: 7118.172948
I19: 4 | J19: 12452.76499 | K19: 14878.52734 | L19: 15764.10742 | M19: 19430.36943 | N19: 18410.93786 | O19: 40942.52256 | P19: 34814.45812 | Q19: 21421.04478 | R19: 39727.5138
I20: 5 | J20: 9405.362382 | K20: 21958.92514 | L20: 15759.95419 | M20: 6367.540747 | N20: 14240.12355 | O20: 25802.48137 | P20: 95486.19691 | Q20: 27018.50996 | R20: 65420.11622
C21: Selected strategy | D21: 9 | I21: 6 | J21: 21717.21409 | K21: 16199.33461 | L21: 14610.16575 | M21: 23449.50157 | N21: 21909.12023 | O21: 8024.634003 | P21: 45161.73216 | Q21: 42044.89007 | R21: 76851.43102
I22: 7 | J22: 14741.24004 | K22: 17003.90186 | L22: 16577.56244 | M22: 19042.78605 | N22: 37309.15197 | O22: 53504.72517 | P22: 18862.48715 | Q22: 28776.08042 | R22: 59414.88646
C23: Portfolio weights | D23: S&P 500 | E23: T. Bills | F23: T. Bonds | I23: 8 | J23: 12701.33925 | K23: 16934.09337 | L23: 25007.55217 | M23: 30830.81083 | N23: 21933.09711 | O23: 35286.66285 | P23: 45161.73216 | Q23: 30266.56341 | R23: 14079.82791
D24: =VLOOKUP($D$21,$C$9:$F$18,2,FALSE) -> 1 | E24: =VLOOKUP($D$21,$C$9:$F$18,3,FALSE) -> 0 | F24: =VLOOKUP($D$21,$C$9:$F$18,4,FALSE) -> 0 | I24: 9 | J24: 11843.28062 | K24: 10931.80394 | L24: 23760.78535 | M24: 13065.82081 | N24: 20583.56438 | O24: 24369.28567 | P24: 22601.57565 | Q24: 7457.184409 | R24: 12116.34255
I25: 10 | J25: 20768.28626 | K25: 11403.53319 | L25: 14344.85975 | M25: 23515.93549 | N25: 25424.02987 | O25: 27068.05485 | P25: 8662.423246 | Q25: 28797.29223 | R25: 33290.90984
B26: Set behavior: | C26: 1 | I26: 11 | J26: 26634.85307 | K26: 22732.79714 | L26: 23561.45054 | M26: 10451.91412 | N26: 13511.69462 | O26: 9869.588921 | P26: 3017.288781 | Q26: 9652.811421 | R26: 2180.614863
B27: (0 = static; 1 = probabilistic) | I27: 12 | J27: 16710.80772 | K27: 11149.5722 | L27: 15759.95419 | M27: 13642.67869 | N27: 45581.60206 | O27: 10676.61822 | P27: 22601.57565 | Q27: 11928.87207 | R27: 6681.188718
D28: Returns | I28: 13 | J28: 12452.76499 | K28: 11857.44752 | L28: 15746.94226 | M28: 21072.98326 | N28: 59876.13685 | O28: 30608.43199 | P28: 32155.52754 | Q28: 22895.45595 | R28: 89167.41576
A29: Year | B29: Beginning cash | C29: Historical scenario | D29: S&P 500 | E29: T. Bills | F29: T. Bonds | G29: Ending cash | I29: 14 | J29: 15623.73386 | K29: 29672.68084 | L29: 18602.8818 | M29: 16881.5793 | N29: 15786.17739 | O29: 4231.314466 | P29: 54292.74974 | Q29: 31902.90431 | R29: 7394.635889
A30: 1 | B30: =$D$5+$D$7 -> 2200 | C30: =RANDBETWEEN(1928,2015) -> 1972 | D30: =IF($C$26=0,HLOOKUP($D$29,'Historical returns'!$F$2:$H$3,2,FALSE),VLOOKUP($C$30,'Historical returns'!$A$2:$D$90,2)+1) -> 1.187553629 | E30: =IF($C$26=0,HLOOKUP($E$29,'Historical returns'!$F$2:$H$3,2,FALSE),VLOOKUP($C$30,'Historical returns'!$A$2:$D$90,3)+1) -> 1.039525 | F30: =IF($C$26=0,HLOOKUP($F$29,'Historical returns'!$F$2:$H$3,2,FALSE),VLOOKUP($C$30,'Historical returns'!$A$2:$D$90,4)+1) -> 1.028184491 | G30: =($D$24*D30+$E$24*E30+$F$24*F30)*B30 -> 2612.617984 | I30: 15 | J30: 15873.12561 | K30: 10931.80394 | L30: 13358.45936 | M30: 13139.02217 | N30: 39406.65819 | O30: 20930.09835 | P30: 18862.48715 | Q30: 53055.59183 | R30: 76851.43102
A31: 2 | B31: =G30+$D$7 -> 3812.617984 | C31: =RANDBETWEEN(1928,2015) -> 1942 | D31: =IF($C$26=0,HLOOKUP($D$29,'Historical returns'!$F$2:$H$3,2,FALSE),VLOOKUP($C$30,'Historical returns'!$A$2:$D$90,2)+1) -> 1.187553629 | E31: =IF($C$26=0,HLOOKUP($E$29,'Historical returns'!$F$2:$H$3,2,FALSE),VLOOKUP($C$30,'Historical returns'!$A$2:$D$90,3)+1) -> 1.039525 | F31: =IF($C$26=0,HLOOKUP($F$29,'Historical returns'!$F$2:$H$3,2,FALSE),VLOOKUP($C$30,'Historical returns'!$A$2:$D$90,4)+1) -> 1.028184491 | G31: =($D$24*D31+$E$24*E31+$F$24*F31)*B31 -> 4527.688324 | I31: 16 | J31: 17679.32162 | K31: 14674.16928 | L31: 14364.47293 | M31: 20229.91959 | N31: 24020.87541 | O31: 83458.03076 | P31: 3930.091559 | Q31: 19541.40906 | R31: 33290.90984
A32: 3 | B32: =G31+$D$7 -> 5727.688324 | C32: 1948 | D32: =IF($C$26=0,HLOOKUP($D$29,'Historical returns'!$F$2:$H$3,2,FALSE),VLOOKUP($C$30,'Historical returns'!$A$2:$D$90,2)+1) -> 1.187553629 | E32: =IF($C$26=0,HLOOKUP($E$29,'Historical returns'!$F$2:$H$3,2,FALSE),VLOOKUP($C$30,'Historical returns'!$A$2:$D$90,3)+1) -> 1.039525 | F32: =IF($C$26=0,HLOOKUP($F$29,'Historical returns'!$F$2:$H$3,2,FALSE),VLOOKUP($C$30,'Historical returns'!$A$2:$D$90,4)+1) -> 1.028184491 | G32: =($D$24*D32+$E$24*E32+$F$24*F32)*B32 -> 6801.937055 | I32: 17 | J32: 12452.76499 | K32: 15631.93714 | L32: 13417.45362 | M32: 16001.65304 | N32: 21009.25589 | O32: 36759.65531 | P32: 34814.45812 | Q32: 19541.40906 | R32: 18720.45072
A33: 4 | B33: 8001.937055 | C33: 2009 | D33: =IF($C$26=0,HLOOKUP($D$29,'Historical returns'!$F$2:$H$3,2,FALSE),VLOOKUP($C$30,'Historical returns'!$A$2:$D$90,2)+1) -> 1.187553629 | E33: =IF($C$26=0,HLOOKUP($E$29,'Historical returns'!$F$2:$H$3,2,FALSE),VLOOKUP($C$30,'Historical returns'!$A$2:$D$90,3)+1) -> 1.039525 | F33: =IF($C$26=0,HLOOKUP($F$29,'Historical returns'!$F$2:$H$3,2,FALSE),VLOOKUP($C$30,'Historical returns'!$A$2:$D$90,4)+1) -> 1.028184491 | G33: 9502.72939 | I33: 18 | J33: 20768.28626 | K33: 14674.16928 | L33: 14175.16075 | M33: 13642.67869 | N33: 23008.24623 | O33: 83458.03076 | P33: 33500.49013 | Q33: 22145.30183 | R33: 35232.41864
A34: 5 | B34: 10702.72939 | C34: 1951 | D34: =IF($C$26=0,HLOOKUP($D$29,'Historical returns'!$F$2:$H$3,2,FALSE),VLOOKUP($C$30,'Historical returns'!$A$2:$D$90,2)+1) -> 1.187553629 | E34: =IF($C$26=0,HLOOKUP($E$29,'Historical returns'!$F$2:$H$3,2,FALSE),VLOOKUP($C$30,'Historical returns'!$A$2:$D$90,3)+1) -> 1.039525 | F34: =IF($C$26=0,HLOOKUP($F$29,'Historical returns'!$F$2:$H$3,2,FALSE),VLOOKUP($C$30,'Historical returns'!$A$2:$D$90,4)+1) -> 1.028184491 | G34: 12710.06513 | I34: 19 | J34: 19121.0541 | K34: 61827.10773 | L34: 18475.25805 | M34: 37411.17813 | N34: 4770.421678 | O34: 31172.96311 | P34: 6275.891567 | Q34: 8832.660768 | R34: 7118.172948
A35: 6 | B35: 13910.06513 | C35: 1956 | D35: =IF($C$26=0,HLOOKUP($D$29,'Historical returns'!$F$2:$H$3,2,FALSE),VLOOKUP($C$30,'Historical returns'!$A$2:$D$90,2)+1) -> 1.187553629 | E35: =IF($C$26=0,HLOOKUP($E$29,'Historical returns'!$F$2:$H$3,2,FALSE),VLOOKUP($C$30,'Historical returns'!$A$2:$D$90,3)+1) -> 1.039525 | F35: =IF($C$26=0,HLOOKUP($F$29,'Historical returns'!$F$2:$H$3,2,FALSE),VLOOKUP($C$30,'Historical returns'!$A$2:$D$90,4)+1) -> 1.028184491 | G35: 16518.94833 | I35: 20 | J35: 14749.34315 | K35: 23934.55119 | L35: 34748.87778 | M35: 18043.5399 | N35: 20718.43429 | O35: 27503.65696 | P35: 10966.82222 | Q35: 8832.660768 | R35: 33863.04333
A36: 7 | B36: 17718.94833 | C36: 1955 | D36: =IF($C$26=0,HLOOKUP($D$29,'Historical returns'!$F$2:$H$3,2,FALSE),VLOOKUP($C$30,'Historical returns'!$A$2:$D$90,2)+1) -> 1.187553629 | E36: =IF($C$26=0,HLOOKUP($E$29,'Historical returns'!$F$2:$H$3,2,FALSE),VLOOKUP($C$30,'Historical returns'!$A$2:$D$90,3)+1) -> 1.039525 | F36: =IF($C$26=0,HLOOKUP($F$29,'Historical returns'!$F$2:$H$3,2,FALSE),VLOOKUP($C$30,'Historical returns'!$A$2:$D$90,4)+1) -> 1.028184491 | G36: 21042.20139 | I36: 21 | J36: 34933.03931 | K36: 21958.92514 | L36: 19224.58327 | M36: 7334.861082 | N36: 13745.37657 | O36: 9320.702659 | P36: 38024.1684 | Q36: 129470.1144 | R36: 54594.56744
A37: 8 | B37: 22242.20139 | C37: 2013 | D37: =IF($C$26=0,HLOOKUP($D$29,'Historical returns'!$F$2:$H$3,2,FALSE),VLOOKUP($C$30,'Historical returns'!$A$2:$D$90,2)+1) -> 1.187553629 | E37: =IF($C$26=0,HLOOKUP($E$29,'Historical returns'!$F$2:$H$3,2,FALSE),VLOOKUP($C$30,'Historical returns'!$A$2:$D$90,3)+1) -> 1.039525 | F37: =IF($C$26=0,HLOOKUP($F$29,'Historical returns'!$F$2:$H$3,2,FALSE),VLOOKUP($C$30,'Historical returns'!$A$2:$D$90,4)+1) -> 1.028184491 | G37: 26413.80698 | I37: 22 | J37: 31053.54096 | K37: 56656.84299 | L37: 15225.81104 | M37: 33862.83662 | N37: 57711.49817 | O37: 11282.17822 | P37: 33500.49013 | Q37: 70295.97831 | R37: 2071.514132
A38: 9 | B38: 27613.80698 | C38: 2004 | D38: =IF($C$26=0,HLOOKUP($D$29,'Historical returns'!$F$2:$H$3,2,FALSE),VLOOKUP($C$30,'Historical returns'!$A$2:$D$90,2)+1) -> 1.187553629 | E38: =IF($C$26=0,HLOOKUP($E$29,'Historical returns'!$F$2:$H$3,2,FALSE),VLOOKUP($C$30,'Historical returns'!$A$2:$D$90,3)+1) -> 1.039525 | F38: =IF($C$26=0,HLOOKUP($F$29,'Historical returns'!$F$2:$H$3,2,FALSE),VLOOKUP($C$30,'Historical returns'!$A$2:$D$90,4)+1) -> 1.028184491 | G38: 32792.87669 | I38: 23 | J38: 45301.53203 | K38: 29672.68084 | L38: 22018.3816 | M38: 21072.98326 | N38: 29468.8336 | O38: 11282.17822 | P38: 49519.09875 | Q38: 12451.06601 | R38: 31715.27356
A39: 10 | B39: 33992.87669 | C39: 1962 | D39: =IF($C$26=0,HLOOKUP($D$29,'Historical returns'!$F$2:$H$3,2,FALSE),VLOOKUP($C$30,'Historical returns'!$A$2:$D$90,2)+1) -> 1.187553629 | E39: =IF($C$26=0,HLOOKUP($E$29,'Historical returns'!$F$2:$H$3,2,FALSE),VLOOKUP($C$30,'Historical returns'!$A$2:$D$90,3)+1) -> 1.039525 | F39: =IF($C$26=0,HLOOKUP($F$29,'Historical returns'!$F$2:$H$3,2,FALSE),VLOOKUP($C$30,'Historical returns'!$A$2:$D$90,4)+1) -> 1.028184491 | G39: 40368.36408 | I39: 24 | J39: 29760.44302 | K39: 18218.58457 | L39: 21725.13146 | M39: 20185.02604 | N39: 48565.49823 | O39: 16505.60026 | P39: 27452.97572 | Q39: 15663.43866 | R39: 6681.188718
I40: 25 | J40: 45301.53203 | K40: 26110.94884 | L40: 27144.95822 | M40: 20229.91959 | N40: 27833.63085 | O40: 27068.05485 | P40: 40377.46376 | Q40: 9138.516963 | R40: 182942.886
I41: 26 | J41: 12888.20463 | K41: 16665.14989 | L41: 15225.81104 | M41: 16500.22262 | N41: 28426.77891 | O41: 3171.300642 | P41: 17996.89599 | Q41: 20987.92566 | R41: 17687.53364
I42: 27 | J42: 16788.08168 | K42: 14854.89851 | L42: 15161.00779 | M42: 21072.98326 | N42: 20583.56438 | O42: 51330.34028 | P42: 26541.89604 | Q42: 27018.50996 | R42: 12194.45251
I43: 28 | J43: 22812.56491 | K43: 15391.83733 | L43: 17693.86465 | M43: 10111.45101 | N43: 37309.15197 | O43: 20991.10341 | P43: 31127.87226 | Q43: 15663.43866 | R43: 18230.64554
I44: 29 | J44: 16088.43003 | K44: 18086.44851 | L44: 16955.34947 | M44: 10111.45101 | N44: 23283.85458 | O44: 28431.43649 | P44: 16650.22907 | Q44: 9652.811421 | R44: 7394.635889
I45: 30 | J45: 45301.53203 | K45: 61827.10773 | L45: 17683.76534 | M45: 15202.97292 | N45: 11684.60518 | O45: 26268.6138 | P45: 63015.12469 | Q45: 10151.90849 | R45: 39263.77088
I46: 31 | J46: 12056.41844 | K46: 32294.12126 | L46: 20698.84235 | M46: 21072.98326 | N46: 24853.2478 | O46: 6199.319546 | P46: 27373.10259 | Q46: 56069.34763 | R46: 2180.614863
I47: 32 | J47: 21717.21409 | K47: 12777.6674 | L47: 14264.23791 | M47: 19042.78605 | N47: 20583.56438 | O47: 67717.30634 | P47: 41657.5035 | Q47: 43417.41805 | R47: 6360.790516
I48: 33 | J48: 13595.40406 | K48: 15391.83733 | L48: 34748.87778 | M48: 16500.22262 | N48: 32184.53527 | O48: 55264.43877 | P48: 17996.89599 | Q48: 11928.87207 | R48: 23583.88473
I49: 34 | J49: 15417.87092 | K49: 35705.5952 | L49: 17920.48609 | M49: 22961.93135 | N49: 24020.87541 | O49: 20827.02931 | P49: 10532.66749 | Q49: 37073.98079 | R49: 55012.31559
I50: 35 | J50: 11036.4618 | K50: 14611.61848 | L50: 25389.33276 | M50: 13011.82019 | N50: 23043.3454 | O50: 10369.40267 | P50: 54100.77848 | Q50: 37101.53138 | R50: 51141.79946
I51: 36 | J51: 15554.9967 | K51: 14587.81383 | L51: 15923.54935 | M51: 31554.72248 | N51: 42744.61843 | O51: 41653.89035 | P51: 74840.03618 | Q51: 129470.1144 | R51: 17687.53364
I52: 37 | J52: 14741.24004 | K52: 15428.77096 | L52: 18634.52318 | M52: 20550.78238 | N52: 24314.04364 | O52: 16572.48339 | P52: 29283.82598 | Q52: 129470.1144 | R52: 6360.790516
I53: 38 | J53: 14076.20933 | K53: 23934.55119 | L53: 23561.45054 | M53: 19042.78605 | N53: 6130.388229 | O53: 26565.88252 | P53: 14316.96552 | Q53: 10151.90849 | R53: 34970.39764
I54: 39 | J54: 31053.54096 | K54: 16605.65575 | L54: 21725.13146 | M54: 22961.93135 | N54: 18410.93786 | O54: 83458.03076 | P54: 21813.84894 | Q54: 64585.32809 | R54: 17991.8705
I55: 40 | J55: 13918.24201 | K55: 30552.49993 | L55: 15764.10742 | M55: 10142.86013 | N55: 17811.11401 | O55: 27062.73412 | P55: 9633.165291 | Q55: 8474.260347 | R55: 9913.420687
I56: 41 | J56: 15648.66525 | K56: 23934.55119 | L56: 13622.97615 | M56: 7334.861082 | N56: 34295.12415 | O56: 35286.66285 | P56: 34768.0428 | Q56: 79566.62191 | R56: 39727.5138
I57: 42 | J57: 11843.28062 | K57: 8124.796573 | L57: 14146.19165 | M57: 19151.33977 | N57: 6130.388229 | O57: 9320.702659 | P57: 40377.46376 | Q57: 52545.99145 | R57: 93933.0451
I58: 43 | J58: 27392.03855 | K58: 16674.54103 | L58: 15922.08796 | M58: 10142.86013 | N58: 21933.09711 | O58: 8121.624838 | P58: 10180.10984 | Q58: 54060.53311 | R58: 27349.635
I59: 44 | J59: 14594.99063 | K59: 17003.90186 | L59: 18475.25805 | M59: 30785.664 | N59: 57711.49817 | O59: 79848.9445 | P59: 44816.41225 | Q59: 21421.04478 | R59: 8130.563922
I60: 45 | J60: 15064.07971 | K60: 11149.5722 | L60: 16071.47853 | M60: 19097.39636 | N60: 11788.34148 | O60: 36759.65531 | P60: 16072.73549 | Q60: 13099.06353 | R60: 17687.53364
I61: 46 | J61: 8580.441374 | K61: 14017.26295 | L61: 15359.13248 | M61: 30785.664 | N61: 24769.33998 | O61: 18637.9458 | P61: 27708.61353 | Q61: 28078.36516 | R61: 261393.3271
I62: 47 | J62: 18650.24928 | K62: 14674.16928 | L62: 15764.10742 | M62: 15202.97292 | N62: 23008.24623 | O62: 13519.38421 | P62: 17974.17933 | Q62: 8502.450658 | R62: 7879.038919
I63: 48 | J63: 21717.21409 | K63: 13331.01856 | L63: 15651.3461 | M63: 20788.50342 | N63: 15130.85368 | O63: 20930.09835 | P63: 20403.6563 | Q63: 79566.62191 | R63: 2071.514132
I64: 49 | J64: 15873.12561 | K64: 61827.10773 | L64: 15060.43166 | M64: 13139.02217 | N64: 12297.01534 | O64: 4231.314466 | P64: 14316.96552 | Q64: 52421.57454 | R64: 24831.67936
I65: 50 | J65: 18650.24928 | K65: 61827.10773 | L65: 15161.00779 | M65: 15202.97292 | N65: 21931.34768 | O65: 66253.99332 | P65: 49519.09875 | Q65: 7349.223463 | R65: 20303.08746
I66: 51 | J66: 22812.56491 | K66: 16674.54103 | L66: 13023.36177 | M66: 12934.59186 | N66: 11251.6347 | O66: 21930.52797 | P66: 44816.41225 | Q66: 15663.43866 | R66: 6681.188718
I67: 52 | J67: 16166.10768 | K67: 21187.17464 | L67: 14175.16075 | M67: 17116.95144 | N67: 9563.125655 | O67: 40942.52256 | P67: 38024.1684 | Q67: 37497.23451 | R67: 7952.698927
I68: 53 | J68: 15352.4659 | K68: 15631.93714 | L68: 23561.45054 | M68: 13139.02217 | N68: 23283.85458 | O68: 20721.57544 | P68: 12992.10541 | Q68: 37101.53138 | R68: 7394.635889
I69: 54 | J69: 28169.05063 | K69: 24728.09539 | L69: 18215.75137 | M69: 12619.19874 | N69: 16418.49293 | O69: 12110.19613 | P69: 14376.88311 | Q69: 15623.62266 | R69: 12116.34255
I70: 55 | J70: 15786.81102 | K70: 14579.23238 | L70: 17578.71272 | M70: 24981.97417 | N70: 20558.67218 | O70: 20827.02931 | P70: 33500.49013 | Q70: 28776.08042 | R70: 33290.90984
I71: 56 | J71: 15623.73386 | K71: 16934.09337 | L71: 21954.53659 | M71: 13616.35939 | N71: 16418.49293 | O71: 13550.03167 | P71: 54100.77848 | Q71: 17153.53097 | R71: 38898.71363
I72: 57 | J72: 13447.638 | K72: 11206.05324 | L72: 21954.53659 | M72: 31460.74585 | N72: 42744.61843 | O72: 13519.38421 | P72: 32167.87467 | Q72: 31974.55385 | R72: 26783.43935
I73: 58 | J73: 28214.77103 | K73: 16674.54103 | L73: 15126.98093 | M73: 16842.37918 | N73: 15786.17739 | O73: 53007.66073 | P73: 38771.99479 | Q73: 47365.38097 | R73: 6681.188718
I74: 59 | J74: 19121.0541 | K74: 37822.37532 | L74: 14344.85975 | M74: 21072.98326 | N74: 15658.06369 | O74: 32474.06303 | P74: 13452.92182 | Q74: 42044.89007 | R74: 33863.04333
I75: 60 | J75: 20002.20135 | K75: 24728.09539 | L75: 24256.35254 | M75: 18691.94179 | N75: 23043.3454 | O75: 28431.43649 | P75: 14327.19139 | Q75: 35525.43238 | R75: 6360.790516
I76: 61 | J76: 16416.1425 | K76: 15487.12435 | L76: 14175.16075 | M76: 24981.97417 | N76: 34295.12415 | O76: 30876.67591 | P76: 44816.41225 | Q76: 29432.47315 | R76: 123773.404
I77: 62 | J77: 13045.11455 | K77: 11857.44752 | L77: 15664.99858 | M77: 18177.17518 | N77: 35826.92121 | O77: 15936.06237 | P77: 9965.833079 | Q77: 37073.98079 | R77: 14051.64749
I78: 63 | J78: 27392.03855 | K78: 95171.96752 | L78: 16577.56244 | M78: 19890.00998 | N78: 41563.89847 | O78: 53028.64335 | P78: 27373.10259 | Q78: 30266.56341 | R78: 9913.420687
I79: 64 | J79: 16710.80772 | K79: 21187.17464 | L79: 17683.76534 | M79: 32751.7341 | N79: 26115.05281 | O79: 32474.06303 | P79: 27373.10259 | Q79: 14064.1583 | R79: 3433.667739
I80: 65 | J80: 22370.10571 | K80: 53937.6897 | L80: 17683.76534 | M80: 19430.36943 | N80: 4770.421678 | O80: 24258.19224 | P80: 8069.538558 | Q80: 19541.40906 | R80: 86510.6083
I81: 66 | J81: 12452.76499 | K81: 18086.44851 | L81: 14146.19165 | M81: 16510.44287 | N81: 24020.87541 | O81: 27195.51079 | P81: 32167.87467 | Q81: 59134.05952 | R81: 17991.8705
I82: 67 | J82: 16788.08168 | K82: 14497.03572 | L82: 15060.43166 | M82: 13065.82081 | N82: 11635.64486 | O82: 36759.65531 | P82: 26126.80713 | Q82: 42044.89007 | R82: 1535.70152
I83: 68 | J83: 16511.33284 | K83: 15768.31212 | L83: 15832.5469 | M83: 12735.84145 | N83: 27841.91659 | O83: 13840.3047 | P83: 36724.35219 | Q83: 14064.1583 | R83: 91403.22844
I84: 69 | J84: 12701.33925 | K84: 23934.55119 | L84: 15300.18204 | M84: 29041.83726 | N84: 11635.64486 | O84: 8801.366702 | P84: 5836.781066 | Q84: 96632.95948 | R84: 89167.41576
I85: 70 | J85: 14749.34315 | K85: 15391.83733 | L85: 21954.53659 | M85: 23515.93549 | N85: 10882.75791 | O85: 13966.17899 | P85: 63015.12469 | Q85: 27789.97355 | R85: 62674.06034
I86: 71 | J86: 27392.03855 | K86: 37822.37532 | L86: 14649.72148 | M86: 23515.93549 | N86: 4770.421678 | O86: 27068.05485 | P86: 23769.19022 | Q86: 37101.53138 | R86: 24722.97247
I87: 72 | J87: 28085.92451 | K87: 95171.96752 | L87: 14042.41909 | M87: 13065.82081 | N87: 35826.92121 | O87: 33720.54591 | P87: 44816.41225 | Q87: 10151.90849 | R87: 2180.614863
I88: 73 | J88: 7855.294889 | K88: 29672.68084 | L88: 13358.45936 | M88: 24981.97417 | N88: 15786.17739 | O88: 24258.19224 | P88: 28537.54573 | Q88: 22145.30183 | R88: 13258.53873
I89: 74 | J89: 14017.32649 | K89: 13652.22421 | L89: 19078.91022 | M89: 6367.540747 | N89: 23283.85458 | O89: 27195.51079 | P89: 33715.79098 | Q89: 17234.33594 | R89: 39263.77088
I90: 75 | J90: 14076.20933 | K90: 14611.61848 | L90: 25007.55217 | M90: 23067.94261 | N90: 45581.60206 | O90: 9869.588921 | P90: 40377.46376 | Q90: 59134.05952 | R90: 122304.9588
I91: 76 | J91: 27392.03855 | K91: 11558.35757 | L91: 13867.07093 | M91: 22815.6026 | N91: 22511.35142 | O91: 32474.06303 | P91: 3831.149265 | Q91: 13214.6328 | R91: 30571.564
I92: 77 | J92: 22188.29183 | K92: 15428.77096 | L92: 13023.36177 | M92: 31554.72248 | N92: 8104.626515 | O92: 20489.62281 | P92: 38771.99479 | Q92: 7457.184409 | R92: 8720.650356
I93: 78 | J93: 12452.76499 | K93: 17003.90186 | L93: 15651.3461 | M93: 21833.00479 | N93: 26115.05281 | O93: 16826.76326 | P93: 27820.72194 | Q93: 15623.62266 | R93: 87776.13824
I94: 79 | J94: 15648.66525 | K94: 16665.14989 | L94: 29265.21748 | M94: 14432.28306 | N94: 23008.24623 | O94: 25802.48137 | P94: 41657.5035 | Q94: 27018.50996 | R94: 12116.34255
I95: 80 | J95: 13595.40406 | K95: 32073.54754 | L95: 21725.13146 | M95: 19042.78605 | N95: 20583.56438 | O95: 20721.57544 | P95: 27820.72194 | Q95: 37497.23451 | R95: 122304.9588
I96: 81 | J96: 14344.6929 | K96: 11206.05324 | L96: 27289.60739 | M96: 10111.45101 | N96: 32184.53527 | O96: 24422.44507 | P96: 17643.08721 | Q96: 129470.1144 | R96: 6360.790516
I97: 82 | J97: 16788.08168 | K97: 16934.09337 | L97: 25389.33276 | M97: 15346.3838 | N97: 24769.33998 | O97: 25604.59768 | P97: 40377.46376 | Q97: 27789.97355 | R97: 51358.62678
I98: 83 | J98: 21150.16997 | K98: 95171.96752 | L98: 22162.13853 | M98: 37411.17813 | N98: 15786.17739 | O98: 20827.02931 | P98: 17643.08721 | Q98: 35525.43238 | R98: 41056.15257
I99: 84 | J99: 16544.73779 | K99: 61827.10773 | L99: 14175.16075 | M99: 20788.50342 | N99: 25549.74858 | O99: 49114.19507 | P99: 21933.7791 | Q99: 96632.95948 | R99: 93933.0451
I100: 85 | J100: 9405.362382 | K100: 16132.5554 | L100: 17243.44097 | M100: 23067.94261 | N100: 32184.53527 | O100: 20489.62281 | P100: 36724.35219 | Q100: 28797.29223 | R100: 34970.39764
I101: 86 | J101: 22812.56491 | K101: 14579.23238 | L101: 16071.26029 | M101: 30785.664 | N101: 22735.12095 | O101: 28431.43649 | P101: 40377.46376 | Q101: 48866.20962 | R101: 51358.62678
I102: 87 | J102: 45301.53203 | K102: 32073.54754 | L102: 27289.60739 | M102: 22815.6026 | N102: 26115.05281 | O102: 13550.03167 | P102: 9047.555695 | Q102: 28078.36516 | R102: 12194.45251
I103: 88 | J103: 16166.10768 | K103: 21527.9313 | L103: 17920.48609 | M103: 12735.84145 | N103: 11604.12832 | O103: 83458.03076 | P103: 12790.85158 | Q103: 31902.90431 | R103: 35232.41864
I104: 89 | J104: 28214.77103 | K104: 17003.90186 | L104: 18810.09175 | M104: 19262.2431 | N104: 10882.75791 | O104: 41800.46322 | P104: 27708.61353 | Q104: 7349.223463 | R104: 93933.0451
I105: 90 | J105: 73074.06249 | K105: 31910.76263 | L105: 10752.1839 | M105: 23515.93549 | N105: 16148.90164 | O105: 26268.6138 | P105: 48123.00375 | Q105: 9138.516963 | R105: 81423.8748
I106: 91 | J106: 14017.32649 | K106: 12026.50012 | L106: 16955.34947 | M106: 21913.4314 | N106: 59876.13685 | O106: 25644.58887 | P106: 24349.30197 | Q106: 3272.468501 | R106: 181970.2311
I107: 92 | J107: 13918.24201 | K107: 16665.14989 | L107: 18475.25805 | M107: 21833.00479 | N107: 9989.086511 | O107: 10676.61822 | P107: 27452.97572 | Q107: 19541.40906 | R107: 7394.635889
I108: 93 | J108: 19048.67463 | K108: 16199.33461 | L108: 14691.84666 | M108: 15202.97292 | N108: 40377.25244 | O108: 4231.314466 | P108: 66904.01853 | Q108: 16803.87563 | R108: 54594.56744
I109: 94 | J109: 28169.05063 | K109: 18218.58457 | L109: 25007.55217 | M109: 11860.86238 | N109: 14240.12355 | O109: 26565.88252 | P109: 25258.98195 | Q109: 20883.85206 | R109: 33863.04333
I110: 95 | J110: 20768.28626 | K110: 23543.91402 | L110: 14364.47293 | M110: 7334.861082 | N110: 39406.65819 | O110: 19430.91263 | P110: 17737.38315 | Q110: 28078.36516 | R110: 12130.16706
I111: 96 | J111: 11843.28062 | K111: 11558.35757 | L111: 15359.13248 | M111: 19042.78605 | N111: 24769.33998 | O111: 40304.23053 | P111: 63015.12469 | Q111: 96632.95948 | R111: 3433.667739
I112: 97 | J112: 49463.32409 | K112: 29672.68084 | L112: 16014.07185 | M112: 24981.97417 | N112: 10882.75791 | O112: 13550.03167 | P112: 63015.12469 | Q112: 16591.88119 | R112: 18230.64554
I113: 98 | J113: 12452.76499 | K113: 6949.570882 | L113: 16017.89096 | M113: 13642.67869 | N113: 11952.90376 | O113: 32474.06303 | P113: 55119.36653 | Q113: 22895.45595 | R113: 7118.172948
I114: 99 | J114: 18650.24928 | K114: 15768.31212 | L114: 27289.60739 | M114: 18043.5399 | N114: 51261.62256 | O114: 16524.76995 | P114: 29283.82598 | Q114: 31618.39625 | R114: 90296.35322
I115: 100 | J115: 12035.38221 | K115: 15428.77096 | L115: 19189.27556 | M115: 13414.38515 | N115: 16418.49293 | O115: 8024.634003 | P115: 8662.423246 | Q115: 19541.40906 | R115: 50287.76787
I116: 101 | J116: 14344.6929 | K116: 14579.23238 | L116: 16106.63488 | M116: 19890.00998 | N116: 29468.8336 | O116: 79848.9445 | P116: 49519.09875 | Q116: 96632.95948 | R116: 3989.795669
I117: 102 | J117: 27392.03855 | K117: 29672.68084 | L117: 14344.85975 | M117: 30830.81083 | N117: 40377.25244 | O117: 27508.31332 | P117: 45161.73216 | Q117: 16591.88119 | R117: 17991.8705
I118: 103 | J118: 9405.362382 | K118: 14021.93427 | L118: 25389.33276 | M118: 12987.51752 | N118: 15786.17739 | O118: 31172.96311 | P118: 25258.98195 | Q118: 29432.47315 | R118: 18349.33777
I119: 104 | J119: 14538.27725 | K119: 24728.09539 | L119: 18634.52318 | M119: 13414.38515 | N119: 15786.17739 | O119: 20827.02931 | P119: 33715.79098 | Q119: 96632.95948 | R119: 44707.05309
I120: 105 | J120: 17679.32162 | K120: 12423.4914 | L120: 18634.52318 | M120: 22326.25356 | N120: 12523.57373 | O120: 53028.64335 | P120: 9811.97206 | Q120: 9652.811421 | R120: 51141.79946
I121: 106 | J121: 19048.67463 | K121: 11507.18218 | L121: 14175.16075 | M121: 32497.51041 | N121: 23008.24623 | O121: 59207.79874 | P121: 38024.1684 | Q121: 35525.43238 | R121: 3311.490699
I122: 107 | J122: 11036.4618 | K122: 13719.93047 | L122: 22162.13853 | M122: 21332.07235 | N122: 18410.93786 | O122: 20827.02931 | P122: 10966.82222 | Q122: 64585.32809 | R122: 39788.28825
I123: 108 | J123: 31559.69925 | K123: 31910.76263 | L123: 10752.1839 | M123: 42282.97764 | N123: 40377.25244 | O123: 27084.48361 | P123: 24349.30197 | Q123: 20987.92566 | R123: 7879.038919
I124: 109 | J124: 28214.77103 | K124: 16132.5554 | L124: 18379.63465 | M124: 12735.84145 | N124: 9563.125655 | O124: 33720.54591 | P124: 39054.46298 | Q124: 47365.38097 | R124: 302760.1188
I125: 110 | J125: 19048.67463 | K125: 17495.74371 | L125: 16777.99663 | M125: 20229.91959 | N125: 11635.64486 | O125: 16572.48339 | P125: 20403.6563 | Q125: 52421.57454 | R125: 122304.9588
I126: 111 | J126: 11936.26246 | K126: 16132.5554 | L126: 15922.08796 | M126: 25580.24361 | N126: 48565.49823 | O126: 16572.48339 | P126: 8662.423246 | Q126: 31902.90431 | R126: 30571.564
I127: 112 | J127: 13045.11455 | K127: 11558.35757 | L127: 14610.16575 | M127: 17542.15972 | N127: 39672.37628 | O127: 20721.57544 | P127: 66904.01853 | Q127: 17493.45627 | R127: 17991.8705
I128: 113 | J128: 13447.638 | K128: 18086.44851 | L128: 15060.43166 | M128: 31554.72248 | N128: 4770.421678 | O128: 9869.588921 | P128: 17974.17933 | Q128: 59134.05952 | R128: 6360.790516
I129: 114 | J129: 16511.33284 | K129: 29672.68084 | L129: 13867.07093 | M129: 18177.17518 | N129: 27833.63085 | O129: 10738.305 | P129: 5735.68831 | Q129: 27018.50996 | R129: 12130.16706
I130: 115 | J130: 16710.80772 | K130: 16199.33461 | L130: 15746.94226 | M130: 11529.92001 | N130: 23043.3454 | O130: 16462.17079 | P130: 20403.6563 | Q130: 64585.32809 | R130: 261393.3271
I131: 116 | J131: 13663.28182 | K131: 13520.83643 | L131: 18634.52318 | M131: 41403.68766 | N131: 59876.13685 | O131: 24247.51696 | P131: 5836.781066 | Q131: 4631.743049 | R131: 1535.70152
I132: 117 | J132: 11854.38165 | K132: 14136.8731 | L132: 15746.94226 | M132: 15586.00971 | N132: 24020.87541 | O132: 20930.09835 | P132: 21813.84894 | Q132: 29432.47315 | R132: 123773.404
I133: 118 | J133: 22188.29183 | K133: 13331.01856 | L133: 16017.89096 | M133: 23454.77551 | N133: 59876.13685 | O133: 26565.88252 | P133: 10733.31808 | Q133: 16591.88119 | R133: 7879.038919
I134: 119 | J134: 12701.33925 | K134: 24728.09539 | L134: 14344.85975 | M134: 10451.91412 | N134: 19125.36007 | O134: 41653.89035 | P134: 6275.891567 | Q134: 4924.917127 | R134: 302760.1188
I135: 120 | J135: 43272.83188 | K135: 61827.10773 | L135: 16777.99663 | M135: 20550.78238 | N135: 17811.11401 | O135: 19430.91263 | P135: 77603.71172 | Q135: 7349.223463 | R135: 33290.90984
I136: 121 | J136: 15623.73386 | K136: 56656.84299 | L136: 22018.3816 | M136: 13139.02217 | N136: 18367.42949 | O136: 13519.38421 | P136: 36724.35219 | Q136: 96632.95948 | R136: 65420.11622
I137: 122 | J137: 20768.28626 | K137: 13652.22421 | L137: 16014.07185 | M137: 23515.93549 | N137: 12592.30044 | O137: 55264.43877 | P137: 3017.288781 | Q137: 22895.45595 | R137: 87776.13824
I138: 123 | J138: 16710.80772 | K138: 16081.36251 | L138: 15746.94226 | M138: 19151.33977 | N138: 15658.06369 | O138: 19430.91263 | P138: 3930.091559 | Q138: 31902.90431 | R138: 7394.635889
I139: 124 | J139: 15130.59475 | K139: 14611.61848 | L139: 13358.45936 | M139: 21072.98326 | N139: 19125.36007 | O139: 33720.54591 | P139: 16650.22907 | Q139: 31902.90431 | R139: 33863.04333
I140: 125 | J140: 13045.11455 | K140: 43843.85059 | L140: 16616.16122 | M140: 14432.28306 | N140: 41563.89847 | O140: 10746.29528 | P140: 20391.12377 | Q140: 52421.57454 | R140: 29295.93884
I141: 126 | J141: 11116.1916 | K141: 18086.44851 | L141: 16071.47853 | M141: 18816.78798 | N141: 15804.47469 | O141: 94068.32474 | P141: 13452.92182 | Q141: 73941.63673 | R141: 72561.4967
I142: 127 | J142: 19467.17454 | K142: 12777.6674 | L142: 17482.47848 | M142: 41403.68766 | N142: 18367.42949 | O142: 42492.26106 | P142: 10532.66749 | Q142: 22145.30183 | R142: 2071.514132
I143: 128 | J143: 19048.67463 | K143: 16081.36251 | L143: 19359.47541 | M143: 19262.2431 | N143: 26115.05281 | O143: 18637.9458 | P143: 74840.03618 | Q143: 4631.743049 | R143: 8105.194415
I144: 129 | J144: 14344.6929 | K144: 14497.03572 | L144: 13417.45362 | M144: 12987.51752 | N144: 11684.60518 | O144: 32474.06303 | P144: 38771.99479 | Q144: 37073.98079 | R144: 7118.172948
I145: 130 | J145: 21888.82143 | K145: 15782.54418 | L145: 13358.45936 | M145: 25580.24361 | N145: 22010.71865 | O145: 79848.9445 | P145: 21039.92775 | Q145: 20883.85206 | R145: 8720.650356
I146: 131 | J146: 15081.72867 | K146: 13331.01856 | L146: 18634.52318 | M146: 29058.11777 | N146: 41563.89847 | O146: 20489.62281 | P146: 16072.73549 | Q146: 28797.29223 | R146: 16039.2169
I147: 132 | J147: 20768.28626 | K147: 13288.69256 | L147: 18215.75137 | M147: 11529.92001 | N147: 15804.47469 | O147: 40942.52256 | P147: 23769.19022 | Q147: 92068.72604 | R147: 18349.33777
I148: 133 | J148: 14960.07623 | K148: 15782.54418 | L148: 22162.13853 | M148: 42282.97764 | N148: 46248.89575 | O148: 40942.52256 | P148: 54100.77848 | Q148: 22483.39514 | R148: 65420.11622
I149: 134 | J149: 16733.02022 | K149: 13331.01856 | L149: 24256.35254 | M149: 19430.36943 | N149: 51261.62256 | O149: 33720.54591 | P149: 8662.423246 | Q149: 4631.743049 | R149: 20303.08746
I150: 135 | J150: 27392.03855 | K150: 15768.31212 | L150: 15471.73832 | M150: 18879.64076 | N150: 12592.30044 | O150: 16572.48339 | P150: 39054.46298 | Q150: 17234.33594 | R150: 84289.42226
I151: 136 | J151: 16710.80772 | K151: 18218.58457 | L151: 10752.1839 | M151: 6367.540747 | N151: 6130.388229 | O151: 27195.51079 | P151: 35213.32263 | Q151: 11173.0744 | R151: 41418.22561
I152: 137 | J152: 15648.66525 | K152: 29672.68084 | L152: 18634.52318 | M152: 10111.45101 | N152: 24020.87541 | O152: 19430.91263 | P152: 10180.10984 | Q152: 13865.64157 | R152: 8130.563922
I153: 138 | J153: 43272.83188 | K153: 14587.81383 | L153: 34748.87778 | M153: 19795.66101 | N153: 10882.75791 | O153: 9708.44978 | P153: 10180.10984 | Q153: 15623.62266 | R153: 44707.05309
I154: 139 | J154: 16145.07187 | K154: 23327.21726 | L154: 15487.97051 | M154: 26477.99632 | N154: 20583.56438 | O154: 5444.75985 | P154: 39054.46298 | Q154: 28567.61307 | R154: 20236.76765
I155: 140 | J155: 26634.85307 | K155: 18218.58457 | L155: 13023.36177 | M155: 17349.96322 | N155: 59876.13685 | O155: 15936.06237 | P155: 77603.71172 | Q155: 129470.1144 | R155: 84289.42226
I156: 141 | J156: 17592.83248 | K156: 21527.9313 | L156: 10896.49424 | M156: 13139.02217 | N156: 48565.49823 | O156: 13613.3785 | P156: 8877.971209 | Q156: 31019.49388 | R156: 39263.77088
I157: 142 | J157: 26634.85307 | K157: 26110.94884 | L157: 13867.07093 | M157: 20788.50342 | N157: 63974.90385 | O157: 42492.26106 | P157: 32167.87467 | Q157: 9645.878806 | R157: 81423.8748
I158: 143 | J158: 19048.67463 | K158: 15428.77096 | L158: 15923.54935 | M158: 16881.5793 | N158: 24769.33998 | O158: 25604.59768 | P158: 10733.31808 | Q158: 11173.0744 | R158: 18720.45072
I159: 144 | J159: 13391.0491 | K159: 14136.8731 | L159: 18379.63465 | M159: 11860.86238 | N159: 46248.89575 | O159: 27068.05485 | P159: 63015.12469 | Q159: 64585.32809 | R159: 96845.29979
I160: 145 | J160: 12888.20463 | K160: 13331.01856 | L160: 18475.25805 | M160: 18816.78798 | N160: 24853.2478 | O160: 79848.9445 | P160: 44646.13493 | Q160: 9454.590602 | R160: 90296.35322
I161: 146 | J161: 33627.94129 | K161: 17003.90186 | L161: 21954.53659 | M161: 17370.58871 | N161: 21933.09711 | O161: 9320.702659 | P161: 9633.165291 | Q161: 56069.34763 | R161: 59414.88646
I162: 147 | J162: 15786.81102 | K162: 24728.09539 | L162: 15225.81104 | M162: 24981.97417 | N162: 16581.91586 | O162: 8024.634003 | P162: 13452.92182 | Q162: 15663.43866 | R162: 20236.76765
I163: 148 | J163: 73074.06249 | K163: 18218.58457 | L163: 14042.41909 | M163: 18816.78798 | N163: 20718.43429 | O163: 4231.314466 | P163: 54923.42346 | Q163: 19315.03384 | R163: 7394.635889
I164: 149 | J164: 16305.77016 | K164: 21527.9313 | L164: 25007.55217 | M164: 21272.00214 | N164: 17891.96347 | O164: 18637.9458 | P164: 28537.54573 | Q164: 13099.06353 | R164: 62674.06034
I165: 150 | J165: 17592.83248 | K165: 13719.93047 | L165: 19224.58327 | M165: 10111.45101 | N165: 26152.70511 | O165: 15936.06237 | P165: 22601.57565 | Q165: 116445.4678 | R165: 27349.635
I166: 151 | J166: 16166.10768 | K166: 18821.11318 | L166: 17845.20734 | M166: 22961.93135 | N166: 21617.94517 | O166: 16505.60026 | P166: 8877.971209 | Q166: 13214.6328 | R166: 34970.39764
I167: 152 | J167: 17679.32162 | K167: 12026.50012 | L167: 14042.41909 | M167: 36301.42289 | N167: 12592.30044 | O167: 10369.40267 | P167: 17643.08721 | Q167: 44911.74963 | R167: 2071.514132
I168: 153 | J168: 16788.08168 | K168: 15347.10171 | L168: 18634.52318 | M168: 21913.4314 | N168: 9209.441883 | O168: 13550.03167 | P168: 38024.1684 | Q168: 59134.05952 | R168: 7201.758669
I169: 154 | J169: 15786.81102 | K169: 8223.126601 | L169: 16293.26506 | M169: 37411.17813 | N169: 24769.33998 | O169: 10676.61822 | P169: 9633.165291 | Q169: 42044.89007 | R169: 31715.27356
I170: 155 | J170: 16416.1425 | K170: 14497.03572 | L170: 34748.87778 | M170: 25580.24361 | N170: 25424.02987 | O170: 24258.19224 | P170: 20403.6563 | Q170: 14064.1583 | R170: 96845.29979
I171: 156 | J171: 8580.441374 | K171: 18086.44851 | L171: 19078.91022 | M171: 12619.19874 | N171: 14921.79597 | O171: 20930.09835 | P171: 55119.36653 | Q171: 37277.39167 | R171: 50287.76787
I172: 157 | J172: 19467.17454 | K172: 13559.0807 | L172: 17073.17761 | M172: 26477.99632 | N172: 17811.11401 | O172: 8024.634003 | P172: 26126.80713 | Q172: 14064.1583 | R172: 302760.1188
I173: 158 | J173: 31053.54096 | K173: 12026.50012 | L173: 17311.24474 | M173: 25580.24361 | N173: 29468.8336 | O173: 26565.88252 | P173: 41657.5035 | Q173: 52545.99145 | R173: 39727.5138
I174: 159 | J174: 26634.85307 | K174: 16081.36251 | L174: 16451.33393 | M174: 42282.97764 | N174: 23283.85458 | O174: 9956.403124 | P174: 32167.87467 | Q174: 116445.4678 | R174: 30571.564
I175: 160 | J175: 13447.638 | K175: 13520.83643 | L175: 14796.87546 | M175: 10451.91412 | N175: 6130.388229 | O175: 30876.67591 | P175: 45161.73216 | Q175: 13099.06353 | R175: 24831.67936
I176: 161 | J176: 14344.6929 | K176: 30552.49993 | L176: 16071.26029 | M176: 19795.66101 | N176: 11635.64486 | O176: 40304.23053 | P176: 48123.00375 | Q176: 13099.06353 | R176: 8720.650356
I177: 162 | J177: 16088.43003 | K177: 9739.781303 | L177: 15832.5469 | M177: 19430.36943 | N177: 48565.49823 | O177: 40942.52256 | P177: 44646.13493 | Q177: 15663.43866 | R177: 3433.667739
I178: 163 | J178: 14749.34315 | K178: 9769.365979 | L178: 14691.84666 | M178: 7334.861082 | N178: 23008.24623 | O178: 13613.3785 | P178: 41657.5035 | Q178: 28567.61307 | R178: 216919.5301
I179: 164 | J179: 14538.27725 | K179: 32073.54754 | L179: 14146.19165 | M179: 13022.687 | N179: 27833.63085 | O179: 16826.76326 | P179: 49519.09875 | Q179: 16591.88119 | R179: 7952.698927
I180: 165 | J180: 22188.29183 | K180: 61827.10773 | L180: 16071.26029 | M180: 19151.33977 | N180: 22868.56928 | O180: 25802.48137 | P180: 16072.73549 | Q180: 28776.08042 | R180: 13258.53873
I181: 166 | J181: 33627.94129 | K181: 23543.91402 | L181: 23760.78535 | M181: 12934.59186 | N181: 15658.06369 | O181: 53504.72517 | P181: 44646.13493 | Q181: 6386.522736 | R181: 31715.27356
I182: 167 | J182: 28169.05063 | K182: 20887.30728 | L182: 16616.16122 | M182: 15346.3838 | N182: 23746.79567 | O182: 16572.48339 | P182: 44646.13493 | Q182: 13865.64157 | R182: 17991.8705
I183: 168 | J183: 20768.28626 | K183: 37822.37532 | L183: 15300.18204 | M183: 13011.82019 | N183: 13909.72849 | O183: 42492.26106 | P183: 63015.12469 | Q183: 11173.0744 | R183: 8105.194415
I184: 169 | J184: 13841.20738 | K184: 23543.91402 | L184: 14815.394 | M184: 12934.59186 | N184: 11604.12832 | O184: 79848.9445 | P184: 22601.57565 | Q184: 48866.20962 | R184: 23583.88473
I185: 170 | J185: 13595.40406 | K185: 17003.90186 | L185: 18379.63465 | M185: 12934.59186 | N185: 46248.89575 | O185: 24247.51696 | P185: 33715.79098 | Q185: 37073.98079 | R185: 182942.886
I186: 171 | J186: 16156.37263 | K186: 23934.55119 | L186: 14042.41909 | M186: 21712.71007 | N186: 16418.49293 | O186: 27508.31332 | P186: 9965.833079 | Q186: 92068.72604 | R186: 7201.758669
I187: 172 | J187: 7855.294889 | K187: 17903.38724 | L187: 11827.80341 | M187: 37411.17813 | N187: 21617.94517 | O187: 28431.43649 | P187: 54923.42346 | Q187: 43417.41805 | R187: 59414.88646
I188: 173 | J188: 13391.0491 | K188: 11507.18218 | L188: 17073.17761 | M188: 20550.78238 | N188: 21909.12023 | O188: 53028.64335 | P188: 9965.833079 | Q188: 96632.95948 | R188: 33290.90984
I189: 174 | J189: 14017.32649 | K189: 17495.74371 | L189: 16451.33393 | M189: 13065.82081 | N189: 14240.12355 | O189: 16826.76326 | P189: 27452.97572 | Q189: 20987.92566 | R189: 34970.39764
I190: 175 | J190: 43272.83188 | K190: 15129.61934 | L190: 16451.33393 | M190: 12934.59186 | N190: 10882.75791 | O190: 8801.366702 | P190: 8069.538558 | Q190: 37802.35888 | R190: 96845.29979
I191: 176 | J191: 16416.1425 | K191: 16081.36251 | L191: 15922.08796 | M191: 14217.48833 | N191: 48565.49823 | O191: 20930.09835 | P191: 39054.46298 | Q191: 2356.899089 | R191: 216919.5301
I192: 177 | J192: 27392.03855 | K192: 14136.8731 | L192: 16017.89096 | M192: 19433.6468 | N192: 19125.36007 | O192: 36759.65531 | P192: 38771.99479 | Q192: 9645.878806 | R192: 9913.420687
I193: 178 | J193: 34933.03931 | K193: 16605.65575 | L193: 22412.04502 | M193: 20788.50342 | N193: 39406.65819 | O193: 55264.43877 | P193: 21813.84894 | Q193: 73941.63673 | R193: 59414.88646
I194: 179 | J194: 12035.38221 | K194: 15428.77096 | L194: 14042.41909 | M194: 6367.540747 | N194: 11788.34148 | O194: 30608.43199 | P194: 25258.98195 | Q194: 13099.06353 | R194: 6360.790516
I195: 180 | J195: 15554.9967 | K195: 34164.84295 | L195: 25389.33276 | M195: 13642.67869 | N195: 13909.72849 | O195: 16572.48339 | P195: 83536.24117 | Q195: 27018.50996 | R195: 41418.22561
I196: 181 | J196: 43272.83188 | K196: 16273.1457 | L196: 17311.24474 | M196: 16500.22262 | N196: 11635.64486 | O196: 13840.3047 | P196: 49519.09875 | Q196: 52421.57454 | R196: 39263.77088
I197: 182 | J197: 49463.32409 | K197: 61827.10773 | L197: 14796.87546 | M197: 37411.17813 | N197: 23998.04087 | O197: 67717.30634 | P197: 49519.09875 | Q197: 11928.87207 | R197: 40368.36408
I198: 183 | J198: 14750.66027 | K198: 15391.83733 | L198: 17243.44097 | M198: 16842.37918 | N198: 21617.94517 | O198: 24422.44507 | P198: 22708.60148 | Q198: 56069.34763 | R198: 72640.34092
I199: 184 | J199: 26634.85307 | K199: 29672.68084 | L199: 16071.26029 | M199: 25580.24361 | N199: 34295.12415 | O199: 41653.89035 | P199: 26541.89604 | Q199: 22145.30183 | R199: 14051.64749
I200: 185 | J200: 14671.17641 | K200: 11206.05324 | L200: 15471.73832 | M200: 22815.6026 | N200: 39406.65819 | O200: 27084.48361 | P200: 46514.46767 | Q200: 25156.03333 | R200: 181970.2311
I201: 186 | J201: 18650.24928 | K201: 13652.22421 | L201: 19359.47541 | M201: 42282.97764 | N201: 57711.49817 | O201: 6199.319546 | P201: 17974.17933 | Q201: 37277.39167 | R201: 14706.68111
I202: 187 | J202: 13045.11455 | K202: 29672.68084 | L202: 15126.98093 | M202: 19433.6468 | N202: 21933.09711 | O202: 3171.300642 | P202: 3017.288781 | Q202: 56069.34763 | R202: 44707.05309
I203: 188 | J203: 20768.28626 | K203: 16132.5554 | L203: 16293.26506 | M203: 11680.7473 | N203: 20718.43429 | O203: 19492.6556 | P203: 13793.88651 | Q203: 71213.17279 | R203: 81423.8748
I204: 189 | J204: 14750.66027 | K204: 16665.14989 | L204: 21428.66362 | M204: 23908.62135 | N204: 27833.63085 | O204: 5444.75985 | P204: 16574.42971 | Q204: 29432.47315 | R204: 65420.11622
I205: 190 | J205: 15786.81102 | K205: 30552.49993 | L205: 16014.07185 | M205: 18879.64076 | N205: 26115.05281 | O205: 8024.634003 | P205: 33500.49013 | Q205: 48756.32364 | R205: 17991.8705
I206: 191 | J206: 31559.69925 | K206: 13559.0807 | L206: 20698.84235 | M206: 10111.45101 | N206: 17214.07897 | O206: 6199.319546 | P206: 14773.18544 | Q206: 17234.33594 | R206: 14051.64749
... 1800 more rows

Sheet Combo box back end (hidden)
A1: Input ranges
A2: Initial balance | B2: Annual deposit
A3: 0 | B3: 100
A4: 1000 | B4: 1200
A5: 2000 | B5: 2400
A6: 3000 | B6: 3600
A7: 4000
A8: 5000
A10: Cell links
A11: Initial balance | B11: Annual deposit
A12: 2 | B12: 2
C32: Initial balance | D32: Annual deposit
B33: 1 | C33: 0 | D33: 100
B34: 2 | C34: 1000 | D34: 1200
B35: 3 | C35: 2000 | D35: 2400
B36: 4 | C36: 3000 | D36: 3600
B37: 5 | C37: 4000
B38: 6 | C38: 5000
C44: =VLOOKUP(A12,B33:C38,2,FALSE) -> 1000 | D44: =VLOOKUP(B12,B33:D38,3,FALSE) -> 1200
... 1 more rows

Sheet Simulation results (hidden)
A1: Strategy | B1: 1 | C1: 2 | D1: 3 | E1: 4 | F1: 5 | G1: 6 | H1: 7 | I1: 8 | J1: 9
A2: Mean | B2: =AVERAGE('Model and simulation'!J16:J5015) -> 18993.91131 | C2: =AVERAGE('Model and simulation'!K16:K5015) -> 20480.39287 | D2: =AVERAGE('Model and simulation'!L16:L5015) -> 17580.48665 | E2: =AVERAGE('Model and simulation'!M16:M5015) -> 20266.50447 | F2: =AVERAGE('Model and simulation'!N16:N5015) -> 23465.89757 | G2: =AVERAGE('Model and simulation'!O16:O5015) -> 28092.03917 | H2: =AVERAGE('Model and simulation'!P16:P5015) -> 29280.89106 | I2: =AVERAGE('Model and simulation'!Q16:Q5015) -> 33942.24759 | J2: =AVERAGE('Model and simulation'!R16:R5015) -> 47895.27263
A3: St dev | B3: =_xlfn.STDEV.S('Model and simulation'!J16:J5015) -> 9879.135583 | C3: =_xlfn.STDEV.S('Model and simulation'!K16:K5015) -> 13682.27519 | D3: =_xlfn.STDEV.S('Model and simulation'!L16:L5015) -> 4122.026292 | E3: =_xlfn.STDEV.S('Model and simulation'!M16:M5015) -> 7822.899618 | F3: =_xlfn.STDEV.S('Model and simulation'!N16:N5015) -> 12445.04771 | G3: =_xlfn.STDEV.S('Model and simulation'!O16:O5015) -> 19311.63216 | H3: =_xlfn.STDEV.S('Model and simulation'!P16:P5015) -> 21187.2001 | I3: =_xlfn.STDEV.S('Model and simulation'!Q16:Q5015) -> 28468.44384 | J3: =_xlfn.STDEV.S('Model and simulation'!R16:R5015) -> 56470.10829
A5: Percentiles
A6: 0.01 | B6: =_xlfn.PERCENTILE.INC('Model and simulation'!J$16:J$5015,'Simulation results'!$A$6) -> 7855.294889 | C6: =_xlfn.PERCENTILE.INC('Model and simulation'!K$16:K$5015,'Simulation results'!$A$6) -> 6949.570882 | D6: =_xlfn.PERCENTILE.INC('Model and simulation'!L$16:L$5015,'Simulation results'!$A$6) -> 10896.49424 | E6: =_xlfn.PERCENTILE.INC('Model and simulation'!M$16:M$5015,'Simulation results'!$A$6) -> 6367.540747 | F6: =_xlfn.PERCENTILE.INC('Model and simulation'!N$16:N$5015,'Simulation results'!$A$6) -> 4770.421678 | G6: =_xlfn.PERCENTILE.INC('Model and simulation'!O$16:O$5015,'Simulation results'!$A$6) -> 3171.300642 | H6: =_xlfn.PERCENTILE.INC('Model and simulation'!P$16:P$5015,'Simulation results'!$A$6) -> 3017.288781 | I6: =_xlfn.PERCENTILE.INC('Model and simulation'!Q$16:Q$5015,'Simulation results'!$A$6) -> 3272.468501 | J6: =_xlfn.PERCENTILE.INC('Model and simulation'!R$16:R$5015,'Simulation results'!$A$6) -> 1535.70152
A7: 0.05 | B7: =_xlfn.PERCENTILE.INC('Model and simulation'!J$16:J$5015,'Simulation results'!$A$7) -> 10954.90683 | C7: =_xlfn.PERCENTILE.INC('Model and simulation'!K$16:K$5015,'Simulation results'!$A$7) -> 9739.781303 | D7: =_xlfn.PERCENTILE.INC('Model and simulation'!L$16:L$5015,'Simulation results'!$A$7) -> 13037.11556 | E7: =_xlfn.PERCENTILE.INC('Model and simulation'!M$16:M$5015,'Simulation results'!$A$7) -> 10111.45101 | F7: =_xlfn.PERCENTILE.INC('Model and simulation'!N$16:N$5015,'Simulation results'!$A$7) -> 9209.441883 | G7: =_xlfn.PERCENTILE.INC('Model and simulation'!O$16:O$5015,'Simulation results'!$A$7) -> 6199.319546 | H7: =_xlfn.PERCENTILE.INC('Model and simulation'!P$16:P$5015,'Simulation results'!$A$7) -> 5836.781066 | I7: =_xlfn.PERCENTILE.INC('Model and simulation'!Q$16:Q$5015,'Simulation results'!$A$7) -> 6386.522736 | J7: =_xlfn.PERCENTILE.INC('Model and simulation'!R$16:R$5015,'Simulation results'!$A$7) -> 3433.667739
A8: 0.25 | B8: =_xlfn.PERCENTILE.INC('Model and simulation'!J$16:J$5015,'Simulation results'!$A$8) -> 14017.32649 | C8: =_xlfn.PERCENTILE.INC('Model and simulation'!K$16:K$5015,'Simulation results'!$A$8) -> 14017.26295 | D8: =_xlfn.PERCENTILE.INC('Model and simulation'!L$16:L$5015,'Simulation results'!$A$8) -> 15060.43166 | E8: =_xlfn.PERCENTILE.INC('Model and simulation'!M$16:M$5015,'Simulation results'!$A$8) -> 14217.48833 | F8: =_xlfn.PERCENTILE.INC('Model and simulation'!N$16:N$5015,'Simulation results'!$A$8) -> 14335.47813 | G8: =_xlfn.PERCENTILE.INC('Model and simulation'!O$16:O$5015,'Simulation results'!$A$8) -> 13613.3785 | H8: =_xlfn.PERCENTILE.INC('Model and simulation'!P$16:P$5015,'Simulation results'!$A$8) -> 12992.10541 | I8: =_xlfn.PERCENTILE.INC('Model and simulation'!Q$16:Q$5015,'Simulation results'!$A$8) -> 13099.06353 | J8: =_xlfn.PERCENTILE.INC('Model and simulation'!R$16:R$5015,'Simulation results'!$A$8) -> 12116.34255
A9: 0.5 | B9: =_xlfn.PERCENTILE.INC('Model and simulation'!J$16:J$5015,'Simulation results'!$A$9) -> 15873.12561 | C9: =_xlfn.PERCENTILE.INC('Model and simulation'!K$16:K$5015,'Simulation results'!$A$9) -> 16081.36251 | D9: =_xlfn.PERCENTILE.INC('Model and simulation'!L$16:L$5015,'Simulation results'!$A$9) -> 16451.33393 | E9: =_xlfn.PERCENTILE.INC('Model and simulation'!M$16:M$5015,'Simulation results'!$A$9) -> 19151.33977 | F9: =_xlfn.PERCENTILE.INC('Model and simulation'!N$16:N$5015,'Simulation results'!$A$9) -> 21909.12023 | G9: =_xlfn.PERCENTILE.INC('Model and simulation'!O$16:O$5015,'Simulation results'!$A$9) -> 24369.28567 | H9: =_xlfn.PERCENTILE.INC('Model and simulation'!P$16:P$5015,'Simulation results'!$A$9) -> 24349.30197 | I9: =_xlfn.PERCENTILE.INC('Model and simulation'!Q$16:Q$5015,'Simulation results'!$A$9) -> 27789.97355 | J9: =_xlfn.PERCENTILE.INC('Model and simulation'!R$16:R$5015,'Simulation results'!$A$9) -> 29295.93884
A10: 0.75 | B10: =_xlfn.PERCENTILE.INC('Model and simulation'!J$16:J$5015,'Simulation results'!$A$10) -> 20768.28626 | C10: =_xlfn.PERCENTILE.INC('Model and simulation'!K$16:K$5015,'Simulation results'!$A$10) -> 21958.92514 | D10: =_xlfn.PERCENTILE.INC('Model and simulation'!L$16:L$5015,'Simulation results'!$A$10) -> 18810.09175 | E10: =_xlfn.PERCENTILE.INC('Model and simulation'!M$16:M$5015,'Simulation results'!$A$10) -> 23454.77551 | F10: =_xlfn.PERCENTILE.INC('Model and simulation'!N$16:N$5015,'Simulation results'!$A$10) -> 26565.66438 | G10: =_xlfn.PERCENTILE.INC('Model and simulation'!O$16:O$5015,'Simulation results'!$A$10) -> 35865.62535 | H10: =_xlfn.PERCENTILE.INC('Model and simulation'!P$16:P$5015,'Simulation results'!$A$10) -> 38771.99479 | I10: =_xlfn.PERCENTILE.INC('Model and simulation'!Q$16:Q$5015,'Simulation results'!$A$10) -> 47365.38097 | J10: =_xlfn.PERCENTILE.INC('Model and simulation'!R$16:R$5015,'Simulation results'!$A$10) -> 59414.88646
A11: 0.95 | B11: =_xlfn.PERCENTILE.INC('Model and simulation'!J$16:J$5015,'Simulation results'!$A$11) -> 34933.03931 | C11: =_xlfn.PERCENTILE.INC('Model and simulation'!K$16:K$5015,'Simulation results'!$A$11) -> 53937.6897 | D11: =_xlfn.PERCENTILE.INC('Model and simulation'!L$16:L$5015,'Simulation results'!$A$11) -> 25389.33276 | E11: =_xlfn.PERCENTILE.INC('Model and simulation'!M$16:M$5015,'Simulation results'!$A$11) -> 36301.42289 | F11: =_xlfn.PERCENTILE.INC('Model and simulation'!N$16:N$5015,'Simulation results'!$A$11) -> 48565.49823 | G11: =_xlfn.PERCENTILE.INC('Model and simulation'!O$16:O$5015,'Simulation results'!$A$11) -> 67717.30634 | H11: =_xlfn.PERCENTILE.INC('Model and simulation'!P$16:P$5015,'Simulation results'!$A$11) -> 74840.03618 | I11: =_xlfn.PERCENTILE.INC('Model and simulation'!Q$16:Q$5015,'Simulation results'!$A$11) -> 96632.95948 | J11: =_xlfn.PERCENTILE.INC('Model and simulation'!R$16:R$5015,'Simulation results'!$A$11) -> 181970.2311
A12: 0.99 | B12: =_xlfn.PERCENTILE.INC('Model and simulation'!J$16:J$5015,'Simulation results'!$A$12) -> 73074.06249 | C12: =_xlfn.PERCENTILE.INC('Model and simulation'!K$16:K$5015,'Simulation results'!$A$12) -> 95171.96752 | D12: =_xlfn.PERCENTILE.INC('Model and simulation'!L$16:L$5015,'Simulation results'!$A$12) -> 34748.87778 | E12: =_xlfn.PERCENTILE.INC('Model and simulation'!M$16:M$5015,'Simulation results'!$A$12) -> 41698.97722 | F12: =_xlfn.PERCENTILE.INC('Model and simulation'!N$16:N$5015,'Simulation results'!$A$12) -> 63974.90385 | G12: =_xlfn.PERCENTILE.INC('Model and simulation'!O$16:O$5015,'Simulation results'!$A$12) -> 94068.32474 | H12: =_xlfn.PERCENTILE.INC('Model and simulation'!P$16:P$5015,'Simulation results'!$A$12) -> 106091.2827 | I12: =_xlfn.PERCENTILE.INC('Model and simulation'!Q$16:Q$5015,'Simulation results'!$A$12) -> 129470.1144 | J12: =_xlfn.PERCENTILE.INC('Model and simulation'!R$16:R$5015,'Simulation results'!$A$12) -> 302760.1188
A17: Analysis questions
A18: (1) Scan the simulation statistics, comparing results for the nine strategies. What kind of pattern emerges? | J18: Strategies that provide better mean performance also come with more volatility.
A19: (2) Say an investor is strongly focused on value, which is often thought of as return (mean performance) per unit of risk (standard deviation). Which of the nine strategies considered here delivers the most value? (Press F9 a few times as you consider the results.) | J19: Strategy 5
A20: (3) Again thinking of value as return per unit of risk, which of the nine strategies delivers the least value? (Press F9 a few times as you consider the results.) | J20: Strategy 9
A21: (4) Say the cafe owners can comfortably manage an initial balance of 1000 and annual deposits of 1200. (First double-check to make sure the relevant values in the model are set to these levels.) At the end of the ten years, they would like to go on an elaborate coffee tour of Central and South America. For this, they will need to achieve an ending balance of 20000. You should find that five of the investment strategies under consideration give close to a 50% chance (or even better) of an ending balance of at least 20000. Now also consider that if the ending balance is less than 13000, it will mean that they haven't grown their investments at all. (1000 + 10*1200 = 13000). They require a roughly 50% chance or better of being able to go on the coffee tour. They also want to nearly eliminate the chance that they end with less than they put into the account. Which of the strategies aligns best with these two objectives? (You might want to press F9 a few times as you consider the results.) | J21: Strategy 6
A22: (5) One potential problem with using standard deviation as a measure of risk is that standard deviation does not communicate the direction of the spread around the mean. What effect does this have in the context of this investment example? | J22: All high deviation is seen as bad/risky, but high deviation that exists because of pronounced left skewness may be advantageous.

Sheet Question options (hidden)
A1: Choose from the options below. | B1: Choose from the options below. | C1: Choose from the options below.
A2: Strategies that provide better mean performance also come with more volatility. | B2: Strategy 1 | C2: All high deviation is seen as good.
A3: When volatility increases, mean performance decreases. | B3: Strategy 2 | C3: All high deviation is seen as bad/risky, but high deviation that exists because of pronounced right skewness may be advantageous.
A4: The question doesn't have an answer because the pattern changes substantially with each recalculation. | B4: Strategy 3 | C4: All high deviation is seen as bad/risky, but high deviation that exists because of pronounced left skewness may be advantageous.
A5: There is no discernable pattern. | B5: Strategy 4
B6: Strategy 5
B7: Strategy 6
B8: Strategy 7
B9: Strategy 8
B10: Strategy 9

Sheet .
D4: Please Enable Macros

Sheet Times (hidden)
A1: Username | B1: Class # | C1: Semester | D1: GP # | E1: Started | F1: Stopped | G1: Pts Earned | H1: Excel Version | I1: Documenation Username | J1: OS Version | K1: File Size On Open | L1: File Size On Close | M1: Filepath On Open | N1: Filepath On Close
A2: RASHAR | B2: P5c | C2: Spring 2020 | D2: 5a | E2: 2020-06-19T13:51:03 | F2: 2020-06-19T16:38:23 | H2: 16.38 | I2: RASHAR | J2: Macintosh (Intel) Version 10.15.4 (Build 19E287) | K2: 0 | L2: 0 | M2: /Users/raunavsharma/Downloads\K303_SU20_Project5_Problem2.xlsm | N2: /Users/raunavsharma/Downloads\K303_SU20_Project5_Problem2.xlsm

Sheet IDSheet (hidden)
E2: Spring 2020
E3: 5a
D4: Username | E4: RASHAR
D5: Classname | E5: P5c
D12: # of Attempts | E12: 1
DMB2014: RASHAR | DMC2014: P5c | DMD2014: Spring 2020 | DME2014: 5a | DMF2014: 2020-06-19T13:51:03 | DMG2014: 2020-06-19T13:51:03 | DMI2014: 16.38 | DMK2014: Macintosh (Intel) Version 10.15.4 (Build 19E287) | DML2014: 0 | DMN2014: /Users/raunavsharma/Downloads\K303_SU20_Project5_Problem2.xlsm
